[Event "*** SCC Grand Prix: Titled Tuesday Blitz"]
[Site "Chess.com"]
[Date "2020.08.04"]
[Round "7"]
[White "Sekar24"]
[Black "MarcoRiehle"]
[Result "0-1"]
[WhiteElo "2471"]
[BlackElo "2742"]
[TimeControl "180+1"]
[EndTime "15:02:01 PDT"]
[Termination "MarcoRiehle won on time"]

1. e4 {[%clk 0:03:00.9]} 1... e5 {[%clk 0:02:58.8]} 2. Nf3 {[%clk 0:03:00.5]}
2... Nf6 {[%clk 0:02:59]} 3. Nxe5 {[%clk 0:02:59.4]} 3... Nxe4 {[%clk 0:02:59]}
4. Qe2 {[%clk 0:02:49.4]} 4... Qe7 {[%clk 0:02:56.3]} 5. Qxe4 {[%clk 0:02:43.2]}
5... d6 {[%clk 0:02:56.1]} 6. Bc4 {[%clk 0:02:31]} 6... Qxe5 {[%clk 0:02:55.3]}
7. Qxe5+ {[%clk 0:02:30.4]} 7... dxe5 {[%clk 0:02:56.2]} 8. O-O {[%clk
0:02:29.1]} 8... Bd6 {[%clk 0:02:55.3]} 9. Re1 {[%clk 0:02:27]} 9... O-O {[%clk
0:02:54.9]} 10. Nc3 {[%clk 0:02:21.6]} 10... Nc6 {[%clk 0:02:54.3]} 11. Nb5
{[%clk 0:02:19.6]} 11... Bf5 {[%clk 0:02:48.2]} 12. d3 {[%clk 0:02:15.9]} 12...
Nd4 {[%clk 0:02:45.8]} 13. Nxd4 {[%clk 0:02:12.7]} 13... exd4 {[%clk 0:02:45.7]}
14. Bd2 {[%clk 0:02:12.4]} 14... Rfe8 {[%clk 0:02:41.2]} 15. Rxe8+ {[%clk
0:01:58.4]} 15... Rxe8 {[%clk 0:02:42.1]} 16. Re1 {[%clk 0:01:58.7]} 16... Kf8
{[%clk 0:02:42.1]} 17. Rxe8+ {[%clk 0:01:53.5]} 17... Kxe8 {[%clk 0:02:43]} 18.
f4 {[%clk 0:01:52.3]} 18... f6 {[%clk 0:02:31.2]} 19. Kf2 {[%clk 0:01:49.8]}
19... c5 {[%clk 0:02:28.8]} 20. Kf3 {[%clk 0:01:44.9]} 20... Ke7 {[%clk
0:02:27.4]} 21. a4 {[%clk 0:01:42]} 21... Bd7 {[%clk 0:02:25.2]} 22. Bd5 {[%clk
0:01:27]} 22... Bxa4 {[%clk 0:02:22.8]} 23. b3 {[%clk 0:01:27]} 23... Bc6 {[%clk
0:02:19.1]} 24. Bxc6 {[%clk 0:01:26.8]} 24... bxc6 {[%clk 0:02:20]} 25. Ke4
{[%clk 0:01:24.1]} 25... Ke6 {[%clk 0:02:11]} 26. f5+ {[%clk 0:01:22.6]} 26...
Kd7 {[%clk 0:02:10.1]} 27. h3 {[%clk 0:01:18.7]} 27... Bc7 {[%clk 0:02:02.9]}
28. g4 {[%clk 0:01:18]} 28... Be5 {[%clk 0:01:57]} 29. Bc1 {[%clk 0:01:17.7]}
29... Bc7 {[%clk 0:01:53.9]} 30. Bd2 {[%clk 0:01:17.3]} 30... Bd8 {[%clk
0:01:52.6]} 31. Be1 {[%clk 0:01:16.5]} 31... Kc8 {[%clk 0:01:40.9]} 32. Bg3
{[%clk 0:01:11.2]} 32... Bc7 {[%clk 0:01:36.5]} 33. Be1 {[%clk 0:00:57.9]} 33...
Kb7 {[%clk 0:01:34.4]} 34. h4 {[%clk 0:00:55.4]} 34... Kb6 {[%clk 0:01:27.6]}
35. g5 {[%clk 0:00:54.6]} 35... Kb5 {[%clk 0:01:25]} 36. Bd2 {[%clk 0:00:39.7]}
36... Be5 {[%clk 0:01:22.7]} 37. h5 {[%clk 0:00:37.8]} 37... Bd6 {[%clk
0:00:58.5]} 38. h6 {[%clk 0:00:29.6]} 38... Bf8 {[%clk 0:00:46.6]} 39. g6 {[%clk
0:00:24]} 39... gxh6 {[%clk 0:00:46.1]} 40. gxh7 {[%clk 0:00:23.5]} 40... Bg7
{[%clk 0:00:46.2]} 41. Bxh6 {[%clk 0:00:23.8]} 41... Bh8 {[%clk 0:00:46.1]} 42.
Kf3 {[%clk 0:00:14.8]} 42... Kb4 {[%clk 0:00:42.2]} 43. Bd2+ {[%clk 0:00:14]}
43... Ka3 {[%clk 0:00:42.2]} 44. Bc1+ {[%clk 0:00:14]} 44... Ka2 {[%clk
0:00:40.8]} 45. Kg4 {[%clk 0:00:13.7]} 45... Kb1 {[%clk 0:00:40.1]} 46. Ba3
{[%clk 0:00:13.7]} 46... Kxc2 {[%clk 0:00:40]} 47. Bxc5 {[%clk 0:00:13]} 47...
Kxd3 {[%clk 0:00:39.9]} 48. Kh5 {[%clk 0:00:13]} 48... Ke4 {[%clk 0:00:37.8]}
49. Kg6 {[%clk 0:00:12.2]} 49... d3 {[%clk 0:00:31.4]} 50. Bb4 {[%clk
0:00:11.9]} 50... c5 {[%clk 0:00:30.5]} 51. Bd2 {[%clk 0:00:11.9]} 51... a6
{[%clk 0:00:29.9]} 52. Kf7 {[%clk 0:00:09.9]} 52... Kxf5 {[%clk 0:00:30.4]} 53.
Kg8 {[%clk 0:00:09.8]} 53... Ke6 {[%clk 0:00:30.1]} 54. Kxh8 {[%clk 0:00:06.6]}
54... Kf7 {[%clk 0:00:31]} 55. Bf4 {[%clk 0:00:06.4]} 55... f5 {[%clk
0:00:31.1]} 56. Bd2 {[%clk 0:00:06.5]} 56... a5 {[%clk 0:00:31.4]} 57. Bxa5
{[%clk 0:00:05.5]} 57... f4 {[%clk 0:00:31.1]} 0-1

[Event "*** SCC Grand Prix: Titled Tuesday Blitz"]
[Site "Chess.com"]
[Date "2020.08.04"]
[Round "7"]
[White "Zkid"]
[Black "IMHansNiemann"]
[Result "1/2-1/2"]
[WhiteElo "2820"]
[BlackElo "2911"]
[TimeControl "180+1"]
[EndTime "15:02:12 PDT"]
[Termination "Game drawn by repetition"]

1. e4 {[%clk 0:03:00.9]} 1... g6 {[%clk 0:02:57.8]} 2. d4 {[%clk 0:03:00.3]}
2... Bg7 {[%clk 0:02:57.7]} 3. Nc3 {[%clk 0:03:00.8]} 3... c6 {[%clk 0:02:57.1]}
4. Nf3 {[%clk 0:02:58.6]} 4... d5 {[%clk 0:02:57.2]} 5. h3 {[%clk 0:02:59]} 5...
dxe4 {[%clk 0:02:57.6]} 6. Nxe4 {[%clk 0:02:58.9]} 6... Nf6 {[%clk 0:02:58.2]}
7. Nxf6+ {[%clk 0:02:57.7]} 7... exf6 {[%clk 0:02:59.1]} 8. Bc4 {[%clk
0:02:56.3]} 8... O-O {[%clk 0:02:58.6]} 9. O-O {[%clk 0:02:56.1]} 9... b5 {[%clk
0:02:59.3]} 10. Bb3 {[%clk 0:02:55]} 10... Nd7 {[%clk 0:02:59.8]} 11. a4 {[%clk
0:02:54.2]} 11... Nb6 {[%clk 0:02:59.3]} 12. axb5 {[%clk 0:02:50.2]} 12... cxb5
{[%clk 0:03:00.2]} 13. d5 {[%clk 0:02:47.2]} 13... Bb7 {[%clk 0:02:59.9]} 14.
Be3 {[%clk 0:02:45.3]} 14... f5 {[%clk 0:02:46.1]} 15. Bd4 {[%clk 0:02:34.5]}
15... Nxd5 {[%clk 0:02:35.3]} 16. Bxg7 {[%clk 0:02:32.8]} 16... Kxg7 {[%clk
0:02:36.2]} 17. Rxa7 {[%clk 0:02:29.8]} 17... Rxa7 {[%clk 0:02:37.1]} 18. Qd4+
{[%clk 0:02:29.7]} 18... Nf6 {[%clk 0:02:37.7]} 19. Qxa7 {[%clk 0:02:28.5]}
19... Bxf3 {[%clk 0:02:38.3]} 20. gxf3 {[%clk 0:02:29.3]} 20... Nh5 {[%clk
0:02:38.7]} 21. Re1 {[%clk 0:01:31.1]} 21... Nf4 {[%clk 0:02:24]} 22. Re7 {[%clk
0:01:19.9]} 22... Qd1+ {[%clk 0:02:02.6]} 23. Kh2 {[%clk 0:01:19.3]} 23... Qf1
{[%clk 0:01:59.6]} 24. Qd4+ {[%clk 0:01:11.5]} 24... Kg8 {[%clk 0:01:55.3]} 25.
Qxf4 {[%clk 0:01:02.9]} 25... Qxf2+ {[%clk 0:01:55.1]} 26. Kh1 {[%clk 0:01:03]}
26... Rd8 {[%clk 0:01:45.4]} 27. Bxf7+ {[%clk 0:00:45.9]} 27... Kf8 {[%clk
0:01:40.2]} 28. Re8+ {[%clk 0:00:36.6]} 28... Rxe8 {[%clk 0:01:39.8]} 29. Bxe8
{[%clk 0:00:37.5]} 29... Kxe8 {[%clk 0:01:31.7]} 30. Qe5+ {[%clk 0:00:32.7]}
30... Kf7 {[%clk 0:01:30]} 31. Qxb5 {[%clk 0:00:31.4]} 31... Qxf3+ {[%clk
0:01:27.4]} 32. Kh2 {[%clk 0:00:31.4]} 32... Qf2+ {[%clk 0:01:27.8]} 33. Kh1
{[%clk 0:00:31.7]} 33... Qxc2 {[%clk 0:01:26.9]} 34. b4 {[%clk 0:00:27.9]} 34...
Qe4+ {[%clk 0:01:22.3]} 35. Kh2 {[%clk 0:00:25.9]} 35... f4 {[%clk 0:01:19.1]}
36. Qd7+ {[%clk 0:00:19.5]} 36... Kg8 {[%clk 0:01:13.9]} 37. b5 {[%clk
0:00:17.7]} 37... Qe2+ {[%clk 0:01:12.8]} 38. Kg1 {[%clk 0:00:17]} 38... f3
{[%clk 0:01:10.9]} 39. Qd8+ {[%clk 0:00:14.7]} 39... Kg7 {[%clk 0:01:10.4]} 40.
Qd4+ {[%clk 0:00:15.2]} 40... Kf7 {[%clk 0:01:05.7]} 41. Qf2 {[%clk 0:00:14.2]}
41... Qxb5 {[%clk 0:00:59.7]} 42. Qxf3+ {[%clk 0:00:14.5]} 42... Qf5 {[%clk
0:01:00.4]} 43. Qb7+ {[%clk 0:00:13.8]} 43... Kg8 {[%clk 0:01:00.6]} 44. Qb3+
{[%clk 0:00:13.7]} 44... Kg7 {[%clk 0:01:00.7]} 45. Kg2 {[%clk 0:00:13.7]} 45...
h5 {[%clk 0:01:00.4]} 46. Qc3+ {[%clk 0:00:13.8]} 46... Kh7 {[%clk 0:00:59.5]}
47. Qc7+ {[%clk 0:00:14.1]} 47... Kh6 {[%clk 0:01:00]} 48. Qd6 {[%clk
0:00:13.7]} 48... h4 {[%clk 0:00:58.5]} 49. Qd2+ {[%clk 0:00:11.1]} 49... Kh7
{[%clk 0:00:51.6]} 50. Qe3 {[%clk 0:00:09.5]} 50... Qd5+ {[%clk 0:00:51.3]} 51.
Kh2 {[%clk 0:00:09.5]} 51... g5 {[%clk 0:00:50.2]} 52. Qe2 {[%clk 0:00:08]}
52... Qd6+ {[%clk 0:00:49.6]} 53. Kh1 {[%clk 0:00:07.8]} 53... Kg6 {[%clk
0:00:50.1]} 54. Qe4+ {[%clk 0:00:07.8]} 54... Kg7 {[%clk 0:00:50.5]} 55. Qe3
{[%clk 0:00:07.4]} 55... Qd5+ {[%clk 0:00:49.2]} 56. Kh2 {[%clk 0:00:07.4]}
56... Qf5 {[%clk 0:00:49.6]} 57. Qe7+ {[%clk 0:00:07.3]} 57... Kh6 {[%clk
0:00:48]} 58. Qd6+ {[%clk 0:00:07.2]} 58... Kh5 {[%clk 0:00:48.2]} 59. Qd1+
{[%clk 0:00:07.5]} 59... Kg6 {[%clk 0:00:48.9]} 60. Qd6+ {[%clk 0:00:08]} 60...
Kf7 {[%clk 0:00:49.5]} 61. Qc7+ {[%clk 0:00:08.4]} 61... Ke6 {[%clk 0:00:48.4]}
62. Qc8+ {[%clk 0:00:08.4]} 62... Ke5 {[%clk 0:00:48.9]} 63. Qc5+ {[%clk
0:00:08.8]} 63... Ke6 {[%clk 0:00:45.8]} 64. Qc8+ {[%clk 0:00:08.7]} 64... Kf6
{[%clk 0:00:46.3]} 65. Qf8+ {[%clk 0:00:09.2]} 65... Kg6 {[%clk 0:00:46.9]} 66.
Qg8+ {[%clk 0:00:09.7]} 66... Kh6 {[%clk 0:00:47.4]} 67. Qh8+ {[%clk 0:00:10]}
67... Qh7 {[%clk 0:00:47.9]} 68. Qxh7+ {[%clk 0:00:09.7]} 68... Kxh7 {[%clk
0:00:48.8]} 69. Kg2 {[%clk 0:00:09.4]} 69... Kg6 {[%clk 0:00:49.4]} 70. Kg1
{[%clk 0:00:09.7]} 70... Kf6 {[%clk 0:00:48.9]} 71. Kf2 {[%clk 0:00:09.8]} 71...
Ke6 {[%clk 0:00:42.9]} 72. Ke2 {[%clk 0:00:09]} 72... Ke5 {[%clk 0:00:38.7]} 73.
Ke3 {[%clk 0:00:09.1]} 73... Kf5 {[%clk 0:00:38]} 74. Kf3 {[%clk 0:00:09.2]}
74... Kf6 {[%clk 0:00:37.8]} 75. Kf2 {[%clk 0:00:09.3]} 75... Ke6 {[%clk
0:00:38]} 76. Ke2 {[%clk 0:00:09.4]} 76... Kd5 {[%clk 0:00:38.4]} 77. Kf3 {[%clk
0:00:09.4]} 77... Ke5 {[%clk 0:00:38.3]} 78. Ke3 {[%clk 0:00:09.5]} 78... Kf5
{[%clk 0:00:38.3]} 79. Kf3 {[%clk 0:00:09.7]} 79... Kg6 {[%clk 0:00:39]} 80. Kg2
{[%clk 0:00:09]} 80... Kg7 {[%clk 0:00:38.9]} 81. Kg1 {[%clk 0:00:09]} 81... Kf8
{[%clk 0:00:39.5]} 82. Kf2 {[%clk 0:00:08.5]} 82... Ke7 {[%clk 0:00:40]} 83. Ke3
{[%clk 0:00:08.7]} 83... Kf7 {[%clk 0:00:38.9]} 84. Kf3 {[%clk 0:00:08.9]} 84...
Kf6 {[%clk 0:00:37.5]} 85. Kf2 {[%clk 0:00:09.1]} 1/2-1/2

[Event "*** SCC Grand Prix: Titled Tuesday Blitz"]
[Site "Chess.com"]
[Date "2020.08.04"]
[Round "7"]
[White "vladislavkovalev"]
[Black "ArjunErigaisi2003"]
[Result "0-1"]
[WhiteElo "2885"]
[BlackElo "3048"]
[TimeControl "180+1"]
[EndTime "15:02:15 PDT"]
[Termination "ArjunErigaisi2003 won by resignation"]

1. e4 {[%clk 0:03:00.9]} 1... e6 {[%clk 0:02:59.8]} 2. d4 {[%clk 0:03:00.9]}
2... d5 {[%clk 0:02:59.9]} 3. Nd2 {[%clk 0:03:01.7]} 3... c5 {[%clk 0:02:58.8]}
4. Ngf3 {[%clk 0:03:01.9]} 4... cxd4 {[%clk 0:02:50.1]} 5. Nxd4 {[%clk
0:03:02.8]} 5... Nf6 {[%clk 0:02:50.5]} 6. exd5 {[%clk 0:03:01.3]} 6... Qxd5
{[%clk 0:02:51.4]} 7. Nb5 {[%clk 0:03:00.8]} 7... Na6 {[%clk 0:02:51.1]} 8. Nc3
{[%clk 0:03:00.8]} 8... Qd8 {[%clk 0:02:49.7]} 9. a3 {[%clk 0:02:58.2]} 9... Bd7
{[%clk 0:02:47.1]} 10. Nc4 {[%clk 0:02:49]} 10... Bc6 {[%clk 0:02:41.3]} 11.
Qxd8+ {[%clk 0:02:43.1]} 11... Rxd8 {[%clk 0:02:42.2]} 12. Ne5 {[%clk
0:02:42.2]} 12... Nb8 {[%clk 0:02:38.7]} 13. Be3 {[%clk 0:02:28.6]} 13... a6
{[%clk 0:02:28.3]} 14. Bb6 {[%clk 0:02:27.6]} 14... Rc8 {[%clk 0:02:24.8]} 15.
Nxc6 {[%clk 0:02:23.7]} 15... Rxc6 {[%clk 0:02:17.2]} 16. Be3 {[%clk 0:02:21.4]}
16... Bc5 {[%clk 0:02:14.9]} 17. Bxc5 {[%clk 0:02:18.9]} 17... Rxc5 {[%clk
0:02:15.8]} 18. O-O-O {[%clk 0:02:19.6]} 18... Ke7 {[%clk 0:02:14.8]} 19. Be2
{[%clk 0:02:19.5]} 19... Rhc8 {[%clk 0:02:12.1]} 20. Bf3 {[%clk 0:02:19.1]}
20... R8c7 {[%clk 0:02:08.1]} 21. Rhe1 {[%clk 0:02:19.1]} 21... Nbd7 {[%clk
0:02:06.9]} 22. Re3 {[%clk 0:02:04.3]} 22... Ne5 {[%clk 0:02:03.1]} 23. Be2
{[%clk 0:02:03.3]} 23... g5 {[%clk 0:02:01.3]} 24. Rd4 {[%clk 0:01:58.9]} 24...
h5 {[%clk 0:01:46.9]} 25. h3 {[%clk 0:01:52.4]} 25... Ng6 {[%clk 0:01:43.4]} 26.
g3 {[%clk 0:01:43]} 26... h4 {[%clk 0:01:39.9]} 27. Bd1 {[%clk 0:01:36.8]} 27...
Rf5 {[%clk 0:01:29.4]} 28. Rd2 {[%clk 0:01:25]} 28... hxg3 {[%clk 0:01:25.3]}
29. fxg3 {[%clk 0:01:25.9]} 29... Rf1 {[%clk 0:01:22.2]} 30. Nd5+ {[%clk
0:01:24.6]} 30... Nxd5 {[%clk 0:01:21.1]} 31. Rxd5 {[%clk 0:01:25.5]} 31... f5
{[%clk 0:01:15]} 32. c3 {[%clk 0:01:17]} 32... Kf6 {[%clk 0:01:10.9]} 33. Rd6
{[%clk 0:01:14.3]} 33... Ne5 {[%clk 0:01:10.7]} 34. Re2 {[%clk 0:01:08]} 34...
Rh7 {[%clk 0:01:05.4]} 35. Kb1 {[%clk 0:00:30.3]} 35... Rxh3 {[%clk 0:00:52.3]}
36. Ka2 {[%clk 0:00:30.8]} 36... Rh7 {[%clk 0:00:52.7]} 37. Bb3 {[%clk
0:00:24.2]} 37... Re7 {[%clk 0:00:52.9]} 38. Rd8 {[%clk 0:00:22.1]} 38... Rf3
{[%clk 0:00:47.4]} 39. Rg2 {[%clk 0:00:19.3]} 39... g4 {[%clk 0:00:44.5]} 40.
Rf8+ {[%clk 0:00:15.3]} 40... Kg7 {[%clk 0:00:39.7]} 41. Rb8 {[%clk 0:00:15.5]}
41... Kf6 {[%clk 0:00:38.9]} 42. Rf8+ {[%clk 0:00:15]} 42... Nf7 {[%clk
0:00:39.2]} 43. Rb8 {[%clk 0:00:13.9]} 43... Rd3 {[%clk 0:00:35.7]} 44. a4
{[%clk 0:00:13.5]} 44... Ng5 {[%clk 0:00:34.9]} 45. Rf8+ {[%clk 0:00:13.5]}
45... Rf7 {[%clk 0:00:34.5]} 46. Re8 {[%clk 0:00:13.7]} 46... Re3 {[%clk
0:00:34.6]} 47. a5 {[%clk 0:00:11.7]} 47... Re7 {[%clk 0:00:34.3]} 48. Rf8+
{[%clk 0:00:11.8]} 48... Kg7 {[%clk 0:00:34.3]} 49. Rb8 {[%clk 0:00:11.7]} 49...
Ne4 {[%clk 0:00:33.5]} 50. Rh2 {[%clk 0:00:11.1]} 50... Rxg3 {[%clk 0:00:27.6]}
51. Rbh8 {[%clk 0:00:11.4]} 51... Kf6 {[%clk 0:00:26.1]} 52. R2h6+ {[%clk
0:00:10.8]} 52... Ke5 {[%clk 0:00:26.4]} 53. Rc8 {[%clk 0:00:11.4]} 53... Rh3
{[%clk 0:00:23.2]} 54. Rg6 {[%clk 0:00:11.9]} 54... g3 {[%clk 0:00:22.8]} 55.
Bc2 {[%clk 0:00:07.2]} 55... Kf4 {[%clk 0:00:19.8]} 56. Rc4 {[%clk 0:00:06.7]}
56... Ke3 {[%clk 0:00:18.3]} 57. Bxe4 {[%clk 0:00:06.9]} 57... fxe4 {[%clk
0:00:19.2]} 58. Rg4 {[%clk 0:00:07.6]} 58... Kf2 {[%clk 0:00:17.3]} 59. Rcxe4
{[%clk 0:00:07.9]} 59... g2 {[%clk 0:00:17.1]} 60. Rd4 {[%clk 0:00:03.9]} 60...
g1=Q {[%clk 0:00:16.6]} 61. Rd2+ {[%clk 0:00:04.4]} 61... Ke3 {[%clk 0:00:17]}
62. Rxg1 {[%clk 0:00:04.9]} 0-1

[Event "*** SCC Grand Prix: Titled Tuesday Blitz"]
[Site "Chess.com"]
[Date "2020.08.04"]
[Round "7"]
[White "TST2014"]
[Black "anpospan"]
[Result "0-1"]
[WhiteElo "2518"]
[BlackElo "2344"]
[TimeControl "180+1"]
[EndTime "15:02:18 PDT"]
[Termination "anpospan won by checkmate"]

1. d4 {[%clk 0:02:49.1]} 1... Nf6 {[%clk 0:02:59.1]} 2. c4 {[%clk 0:02:47.1]}
2... e6 {[%clk 0:02:59]} 3. Nf3 {[%clk 0:02:46.7]} 3... c5 {[%clk 0:02:59.1]} 4.
e3 {[%clk 0:02:45.8]} 4... a6 {[%clk 0:02:57.3]} 5. Nc3 {[%clk 0:02:39.3]} 5...
cxd4 {[%clk 0:02:49.3]} 6. exd4 {[%clk 0:02:37.8]} 6... d5 {[%clk 0:02:49.1]} 7.
a3 {[%clk 0:02:32.6]} 7... Nc6 {[%clk 0:02:48.7]} 8. c5 {[%clk 0:02:29.9]} 8...
Ne4 {[%clk 0:02:44.6]} 9. Bd3 {[%clk 0:02:27.5]} 9... Qa5 {[%clk 0:02:37.2]} 10.
Bd2 {[%clk 0:02:13]} 10... Nxd2 {[%clk 0:02:36.3]} 11. Qxd2 {[%clk 0:02:13.9]}
11... e5 {[%clk 0:02:25.9]} 12. Nxd5 {[%clk 0:02:09]} 12... Qxd2+ {[%clk
0:02:22.4]} 13. Kxd2 {[%clk 0:02:07]} 13... exd4 {[%clk 0:02:04.5]} 14. Nc7+
{[%clk 0:02:04.1]} 14... Kd8 {[%clk 0:02:02]} 15. Nxa8 {[%clk 0:02:02.2]} 15...
Bxc5 {[%clk 0:02:01.9]} 16. Rac1 {[%clk 0:01:56.7]} 16... Ba7 {[%clk 0:01:56.1]}
17. Ng5 {[%clk 0:01:48.8]} 17... Be6 {[%clk 0:01:52.9]} 18. Bc4 {[%clk 0:01:10]}
18... Kd7 {[%clk 0:01:45.5]} 19. Nxf7 {[%clk 0:01:06.4]} 19... Bxf7 {[%clk
0:01:10.7]} 20. Bxf7 {[%clk 0:01:04.3]} 20... Rxa8 {[%clk 0:01:07.6]} 21. Bd5
{[%clk 0:01:03.9]} 21... Rf8 {[%clk 0:01:00.2]} 22. f3 {[%clk 0:01:00.3]} 22...
Kd6 {[%clk 0:01:00]} 23. Be4 {[%clk 0:00:58.4]} 23... Na5 {[%clk 0:00:55.1]} 24.
Kd3 {[%clk 0:00:49.3]} 24... Nb3 {[%clk 0:00:54.7]} 25. Rce1 {[%clk 0:00:36.6]}
25... b5 {[%clk 0:00:44]} 26. Bxh7 {[%clk 0:00:33.8]} 26... Nc5+ {[%clk
0:00:41.6]} 27. Kc2 {[%clk 0:00:32.6]} 27... a5 {[%clk 0:00:33.9]} 28. b4 {[%clk
0:00:27.5]} 28... axb4 {[%clk 0:00:31.6]} 29. axb4 {[%clk 0:00:28.4]} 29... Ne6
{[%clk 0:00:25.6]} 30. Kb3 {[%clk 0:00:26.3]} 30... Nf4 {[%clk 0:00:21.5]} 31.
g3 {[%clk 0:00:26]} 31... Nd5 {[%clk 0:00:21.2]} 32. Ra1 {[%clk 0:00:23.3]}
32... Rxf3+ {[%clk 0:00:19.5]} 33. Kb2 {[%clk 0:00:22.2]} 33... Rf2+ {[%clk
0:00:18.5]} 34. Kc1 {[%clk 0:00:21.2]} 34... Bb6 {[%clk 0:00:16.9]} 35. Be4
{[%clk 0:00:19.8]} 35... Nc3 {[%clk 0:00:16.4]} 36. Ra6 {[%clk 0:00:18.9]} 36...
Nxe4 {[%clk 0:00:14.1]} 37. Rxb6+ {[%clk 0:00:18.7]} 37... Kd5 {[%clk
0:00:14.5]} 38. Rxb5+ {[%clk 0:00:18.4]} 38... Kc4 {[%clk 0:00:14.5]} 39. Re5
{[%clk 0:00:18.6]} 39... Nc3 {[%clk 0:00:13.9]} 40. Rc5+ {[%clk 0:00:14.3]}
40... Kb3 {[%clk 0:00:13.3]} 41. Rxc3+ {[%clk 0:00:14.5]} 41... dxc3 {[%clk
0:00:13.5]} 42. Re1 {[%clk 0:00:10.4]} 42... Ra2 {[%clk 0:00:13.3]} 43. Kd1
{[%clk 0:00:10.2]} 43... Ra1+ {[%clk 0:00:12.6]} 44. Ke2 {[%clk 0:00:10.7]}
44... Rxe1+ {[%clk 0:00:12.4]} 45. Kxe1 {[%clk 0:00:11.6]} 45... c2 {[%clk
0:00:12.7]} 46. Kd2 {[%clk 0:00:12.5]} 46... Kb2 {[%clk 0:00:12.8]} 47. b5
{[%clk 0:00:13.4]} 47... c1=Q+ {[%clk 0:00:12.7]} 48. Kd3 {[%clk 0:00:14.3]}
48... Qc5 {[%clk 0:00:12.3]} 49. b6 {[%clk 0:00:14.1]} 49... Qxb6 {[%clk
0:00:12.2]} 50. h4 {[%clk 0:00:15]} 50... Qg6+ {[%clk 0:00:11.9]} 51. Ke3 {[%clk
0:00:15.2]} 51... Qxg3+ {[%clk 0:00:11.7]} 52. Ke4 {[%clk 0:00:16.1]} 52...
Qxh4+ {[%clk 0:00:11.6]} 53. Kf5 {[%clk 0:00:17]} 53... Qf6+ {[%clk 0:00:11.2]}
54. Kg4 {[%clk 0:00:17.1]} 54... Kc3 {[%clk 0:00:11.2]} 55. Kh5 {[%clk
0:00:08.2]} 55... Qf5+ {[%clk 0:00:09.5]} 56. Kh4 {[%clk 0:00:08.2]} 56... g5+
{[%clk 0:00:09.5]} 57. Kh5 {[%clk 0:00:08.5]} 57... g4+ {[%clk 0:00:07.2]} 58.
Kh4 {[%clk 0:00:08.5]} 58... Qf4 {[%clk 0:00:07.2]} 59. Kh5 {[%clk 0:00:08.7]}
59... g3 {[%clk 0:00:06.9]} 60. Kg6 {[%clk 0:00:08.6]} 60... g2 {[%clk
0:00:06.9]} 61. Kh5 {[%clk 0:00:09.2]} 61... Kd2 {[%clk 0:00:05.7]} 62. Kg6
{[%clk 0:00:09.1]} 62... g1=Q+ {[%clk 0:00:05.2]} 63. Kh5 {[%clk 0:00:10]} 63...
Qfh2# {[%clk 0:00:05.1]} 0-1